bitfinex/quotes_BTCUSD_20241023
["timestamp","ask_amount","ask_price","bid_price","bid_amount"]
[1729691354896,0.0948,66815.0,66814.0,0.149669]
[1729691356896,0.0948,66815.0,66794.0,0.48588471]
[1729691356897,0.37400131,66815.0,66805.0,0.005]
[1729691357078,0.50599393,66815.0,66812.0,0.149673]
[1729691357547,0.149669,66814.0,66811.0,0.149674]
[1729691357760,0.05592282,66814.0,66804.0,0.005]
[1729691358005,0.149674,66812.0,66804.0,0.005]
[1729691358245,0.149674,66812.0,66798.0,0.299569]
[1729691358246,0.26152693,66807.0,66798.0,0.299569]
[1729691358454,0.15050381,66812.0,66798.0,0.299569]
[1729691358455,0.26152693,66803.0,66798.0,0.299569]
[1729691358734,0.26152693,66803.0,66802.0,0.151344]
[1729691358977,0.26152693,66803.0,66802.0,0.001648]
[1729691358978,0.41121993,66803.0,66802.0,0.001648]
[1729691359223,0.50971993,66803.0,66802.0,0.001648]
[1729691359448,0.66022374,66803.0,66802.0,0.001648]
[1729691361550,0.66522374,66803.0,66802.0,0.001648]
[1729691361858,0.79970151,66803.0,66802.0,0.001648]
[1729691362719,1.06122844,66803.0,66802.0,0.001648]
[1729691362928,1.14252844,66803.0,66802.0,0.001648]
[1729691363170,0.88100151,66803.0,66802.0,0.001648]
[1729691363382,1.14252844,66803.0,66802.0,0.001648]
[1729691364023,0.88100151,66803.0,66802.0,0.001648]
[1729691365519,0.48499681,66803.0,66802.0,0.001648]
[1729691365731,0.59683074,66803.0,66802.0,0.001648]
[1729691365953,0.44132693,66803.0,66802.0,0.001648]
[1729691366390,0.35206126,66803.0,66802.0,0.151344]
[1729691366600,0.35206126,66803.0,66802.0,0.001648]
[1729691366821,0.38776739,66803.0,66802.0,0.001648]
[1729691367254,0.53746039,66803.0,66802.0,0.001648]
[1729691367469,0.5382712,66803.0,66802.0,0.001648]
[1729691367701,0.86022546,66803.0,66802.0,0.001648]
[1729691368179,0.86522546,66803.0,66802.0,0.001648]
[1729691371158,0.86522546,66803.0,66789.0,0.001648]
[1729691371159,0.005,66795.0,66789.0,0.001648]
[1729691371387,0.32198126,66792.0,66789.0,0.22600578]
[1729691371584,0.17226126,66792.0,66789.0,0.001648]
[1729691372042,0.22435778,66790.0,66789.0,0.001648]
[1729691372300,0.323523,66790.0,66789.0,0.001648]
[1729691372756,0.1738,66790.0,66789.0,0.001648]
[1729691373167,0.1738,66790.0,66789.0,0.151373]
[1729691373619,0.17226126,66792.0,66791.0,0.14972]
[1729691374073,0.17226126,66792.0,66791.0,0.14988]
[1729691374708,0.17226126,66792.0,66791.0,0.14972]
[1729691375789,0.17226126,66792.0,66789.0,0.001808]
[1729691376006,0.17226126,66792.0,66789.0,0.001648]
[1729691377337,0.17226126,66792.0,66789.0,0.151373]
[1729691377548,0.17226126,66792.0,66791.0,0.00016]
[1729691378212,0.17226126,66792.0,66791.0,0.14988]
[1729691378425,0.17226126,66792.0,66789.0,0.301096]
[1729691378426,0.17226126,66792.0,66789.0,0.151372]
[1729691378846,0.24207029,66792.0,66790.0,0.149722]
[1729691379477,0.24207029,66792.0,66791.0,0.00016]
[1729691379685,0.17226126,66792.0,66791.0,0.00016]
[1729691380104,0.17226126,66792.0,66791.0,0.14988]
[1729691381244,0.0767,66795.0,66794.0,0.149714]
[1729691381476,0.0971,66799.0,66792.0,0.00016]
[1729691381693,0.22435778,66797.0,66796.0,0.149709]
[1729691381908,0.0971,66799.0,66798.0,0.149705]
[1729691382112,0.0971,66799.0,66798.0,0.149865]
[1729691382749,0.0971,66799.0,66797.0,0.299574]
[1729691382957,0.0971,66799.0,66798.0,0.149705]
[1729691383195,0.0971,66799.0,66794.0,0.299588]
[1729691383429,0.17226126,66795.0,66794.0,0.449302]
[1729691383638,0.0971,66799.0,66798.0,0.149705]
[1729691383849,0.26936126,66799.0,66798.0,0.172865]
[1729691384091,0.30454979,66799.0,66798.0,0.172865]
[1729691384326,0.26936126,66799.0,66794.0,0.299587]
[1729691384533,0.17226126,66795.0,66794.0,0.299586]
[1729691384794,0.17226126,66795.0,66794.0,0.4493]
[1729691385021,0.17226126,66795.0,66794.0,0.149874]
[1729691386693,0.0971,66799.0,66796.0,0.299419]
[1729691386892,0.0971,66799.0,66794.0,0.00016]
[1729691387167,0.0971,66799.0,66798.0,0.149705]
[1729691387369,0.0971,66799.0,66794.0,0.299583]
[1729691387370,0.0971,66799.0,66794.0,0.299586]
[1729691387608,0.0971,66799.0,66797.0,0.149706]
[1729691387841,0.0971,66799.0,66798.0,0.149865]
[1729691389561,0.0817,66802.0,66801.0,0.149698]
[1729691389805,0.1296143,66802.0,66797.0,0.00016]
[1729691390036,0.1296143,66802.0,66798.0,0.299408]
[1729691390267,0.1296143,66802.0,66799.0,0.299405]
[1729691390496,0.1296143,66802.0,66799.0,0.149701]
[1729691390732,0.1296143,66802.0,66801.0,0.149698]
[1729691391210,0.1296143,66802.0,66798.0,0.299408]
[1729691391455,0.0817,66802.0,66801.0,0.149698]
[1729691391948,0.0817,66802.0,66798.0,0.00016]
[1729691392242,0.0817,66802.0,66800.0,0.1497]
[1729691392438,0.0817,66802.0,66799.0,0.149702]
[1729691392680,0.0817,66802.0,66797.0,0.00016]
[1729691392920,0.0232213,66801.0,66795.0,0.00016]
[1729691393155,0.0232213,66801.0,66797.0,0.00016]
[1729691393612,0.0232213,66801.0,66797.0,0.149866]
[1729691394293,0.0232213,66801.0,66798.0,0.149704]
[1729691394768,0.0232213,66801.0,66797.0,0.00016]
[1729691395006,0.0232213,66801.0,66799.0,0.149702]
[1729691395007,0.07270846,66800.0,66799.0,0.149702]
[1729691395248,0.0232213,66801.0,66800.0,0.00016]
[1729691395507,0.000824,66802.0,66800.0,0.00016]
[1729691395772,0.000824,66802.0,66801.0,0.43520181]
[1729691396006,0.000824,66802.0,66801.0,0.44520181]
[1729691396229,0.000824,66802.0,66801.0,0.44536181]
[1729691398154,0.000824,66811.0,66810.0,0.01016]
[1729691398366,0.000824,66811.0,66810.0,0.62839621]
[1729691398602,0.000824,66811.0,66810.0,0.62540307]
[1729691398816,1e-06,66811.0,66810.0,0.84206433]
[1729691399474,1e-06,66811.0,66810.0,0.66980307]
[1729691399991,8e-07,66817.0,66816.0,0.283824]
[1729691400204,8e-07,66817.0,66816.0,0.60558907]
[1729691400414,8e-07,66817.0,66816.0,0.60758907]
[1729691400620,8e-07,66817.0,66816.0,0.60658907]
[1729691401048,8e-07,66817.0,66816.0,0.77985033]
[1729691401271,8e-07,66817.0,66816.0,0.60758907]
[1729691401493,8e-07,66817.0,66816.0,0.60658907]
[1729691401708,8e-07,66817.0,66816.0,0.78785033]
[1729691401946,8e-07,66817.0,66816.0,0.78985033]
[1729691403525,1e-06,66823.0,66822.0,0.171811]
[1729691403777,1e-06,66823.0,66822.0,0.59457607]
[1729691403987,1e-06,66823.0,66822.0,0.61757607]
[1729691404203,0.22435778,66838.0,66822.0,0.61757607]
[1729691404204,0.21518278,66830.0,66829.0,0.259795]
[1729691404401,0.21518278,66830.0,66829.0,0.60556007]
[1729691404820,0.22435778,66838.0,66832.0,0.282788]
[1729691405030,0.22435778,66838.0,66832.0,0.43329181]
[1729691405716,0.22435778,66838.0,66832.0,0.43429181]
[1729691405941,0.22435778,66838.0,66832.0,0.43329181]
[1729691406395,0.1,66840.0,66832.0,0.43329181]
[1729691406396,0.1,66840.0,66832.0,0.43429181]
[1729691406804,0.1,66840.0,66832.0,0.43329181]
[1729691407046,0.1,66840.0,66832.0,0.43429181]
[1729691407252,0.1,66840.0,66832.0,0.43329181]
[1729691410987,0.22435778,66835.0,66832.0,0.277628]
[1729691411218,0.1,66840.0,66832.0,0.277628]
[1729691411219,0.0762,66834.0,66832.0,0.149628]
[1729691411442,0.30055778,66834.0,66832.0,0.154628]
[1729691411660,0.100321,66833.0,66832.0,0.149628]
[1729691412776,0.100321,66833.0,66830.0,0.00016]
[1729691412969,0.17226126,66832.0,66821.0,0.00016]
[1729691413176,0.17226126,66832.0,66822.0,0.299302]
[1729691413391,0.17226126,66825.0,66820.0,0.00016]
[1729691413639,0.17226126,66821.0,66814.0,0.00016]
[1729691413841,0.17226126,66816.0,66809.0,0.00204]
[1729691414531,0.17226126,66816.0,66810.0,0.299356]
[1729691414745,0.17226126,66816.0,66813.0,0.14967]
[1729691414948,0.17226126,66816.0,66811.0,0.149675]
[1729691414949,0.149667,66815.0,66811.0,0.149675]
[1729691415159,0.17226126,66816.0,66810.0,0.449031]
[1729691415387,0.14966,66818.0,66813.0,0.149669]
[1729691415615,0.30016381,66818.0,66813.0,0.149669]
[1729691415830,0.149665,66816.0,66810.0,0.299356]
[1729691416036,0.29775389,66818.0,66809.0,0.30156]
[1729691416242,0.149665,66816.0,66811.0,0.149675]
[1729691416451,0.299325,66817.0,66809.0,0.30156]
[1729691416668,0.30016381,66818.0,66813.0,0.14967]
[1729691416901,0.149663,66817.0,66811.0,0.29935]
[1729691417145,0.15050381,66818.0,66815.0,0.00016]
[1729691417392,0.15050381,66818.0,66814.0,0.149668]
[1729691417623,0.15050381,66818.0,66813.0,0.00016]
[1729691417624,0.15050381,66818.0,66813.0,0.14983]
[1729691417840,0.30016381,66818.0,66813.0,0.14967]
[1729691418049,0.15050381,66818.0,66816.0,0.149663]
[1729691418259,0.15050381,66818.0,66810.0,0.00016]
[1729691418472,0.15050381,66818.0,66815.0,0.00016]
[1729691418690,0.15050381,66818.0,66814.0,0.149668]
[1729691418893,0.15050381,66818.0,66815.0,0.149664]
[1729691419104,0.15132781,66818.0,66815.0,0.149664]
[1729691419581,0.17226126,66816.0,66813.0,0.001648]
[1729691419782,0.230969,66814.0,66813.0,0.001648]
[1729691419992,0.47697281,66814.0,66813.0,0.001648]
[1729691420211,0.61408462,66814.0,66813.0,0.001648]
[1729691420470,0.62522318,66814.0,66813.0,0.001648]
[1729691420721,0.154678,66810.0,66809.0,0.00204]
[1729691420917,0.47798181,66810.0,66809.0,0.00204]
[1729691421159,0.64362533,66810.0,66809.0,0.00204]
[1729691421376,0.49312152,66810.0,66809.0,0.00204]
[1729691421589,0.48812112,66810.0,66809.0,0.00204]
[1729691421863,0.18293931,66810.0,66809.0,0.00204]
[1729691422067,0.1718,66810.0,66809.0,0.15188]
[1729691426643,0.1718,66810.0,66809.0,0.17488]
[1729691428430,0.34406126,66810.0,66809.0,0.00204]
[1729691428700,0.34406126,66810.0,66809.0,0.15172]
[1729691429129,0.1718,66810.0,66809.0,0.15172]
[1729691429332,0.1512653,66810.0,66809.0,0.15188]
[1729691429584,0.1512653,66810.0,66809.0,0.15172]
[1729691430205,0.1512653,66810.0,66809.0,0.00204]
[1729691430206,0.3009433,66810.0,66809.0,0.00204]
[1729691430207,0.47320456,66810.0,66809.0,0.00204]
[1729691430396,0.47320456,66810.0,66809.0,0.003688]
[1729691430961,0.62370837,66810.0,66809.0,0.003688]
[1729691431164,0.94519151,66810.0,66809.0,0.003688]
[1729691431405,0.94519151,66810.0,66801.0,0.00199]
[1729691431406,0.149696,66802.0,66801.0,0.00199]
[1729691431623,0.32195726,66802.0,66801.0,0.00199]
[1729691432492,0.40155726,66802.0,66801.0,0.00199]
[1729691433666,1.05778011,66802.0,66801.0,0.00199]
[1729691433890,0.99006268,66802.0,66801.0,0.00199]
[1729691434110,0.99506268,66802.0,66801.0,0.00199]
[1729691434836,0.263209,66796.0,66794.0,0.003528]
[1729691435064,5.64942961,66796.0,66794.0,0.003528]
[1729691435308,2.35581442,66796.0,66794.0,0.003528]
[1729691436417,2.3736298,66796.0,66794.0,0.003528]
[1729691436660,2.37362977,66796.0,66794.0,0.003528]
[1729691438440,2.37546977,66796.0,66794.0,0.003528]
[1729691438646,2.37362977,66796.0,66794.0,0.003528]
[1729691438885,2.37363756,66796.0,66794.0,0.003528]
[1729691439597,0.265051,66795.0,66794.0,0.003528]
[1729691439826,5.64376489,66795.0,66794.0,0.003528]
[1729691440057,0.01534,66790.0,66789.0,0.001648]
[1729691440309,0.59916515,66790.0,66789.0,0.001648]
[1729691440581,5.49910549,66790.0,66789.0,0.001648]
[1729691440836,5.62184563,66790.0,66789.0,0.001648]
[1729691441070,5.79410689,66790.0,66789.0,0.001648]
[1729691442302,5.76514721,66790.0,66789.0,0.001648]
[1729691442559,5.79514824,66790.0,66789.0,0.001648]
[1729691442777,5.9682495,66790.0,66789.0,0.001648]
[1729691443013,0.329049,66778.0,66777.0,2.0]
[1729691443230,0.66296831,66778.0,66777.0,2.0]
[1729691443451,0.65796831,66778.0,66777.0,1.0]
[1729691444082,0.48570705,66778.0,66777.0,1.0]
[1729691444531,0.64681407,66778.0,66777.0,1.0]
[1729691445491,0.17726126,66782.0,66780.0,0.00016]
[1729691445728,0.19741723,66781.0,66780.0,0.00016]
[1729691445946,0.19741723,66781.0,66779.0,0.00016]
[1729691445947,0.149745,66780.0,66779.0,0.00016]
[1729691446158,0.17226126,66780.0,66777.0,1.0]
[1729691446362,0.149749,66778.0,66777.0,0.945]
[1729691447408,0.30025281,66778.0,66777.0,0.945]
[1729691447811,0.31140043,66778.0,66777.0,0.945]
[1729691449058,0.71305821,66778.0,66777.0,0.945]
[1729691449288,0.50753734,66778.0,66777.0,0.945]
[1729691449484,0.66204115,66778.0,66777.0,0.945]
[1729691450319,0.50653734,66778.0,66777.0,0.945]
[1729691450521,0.48870043,66778.0,66777.0,0.94516]
[1729691450732,0.0778,66778.0,66777.0,0.94516]
[1729691450933,0.299473,66784.0,66778.0,0.149909]
[1729691450934,0.32200226,66782.0,66778.0,0.149909]
[1729691451170,0.15050381,66781.0,66778.0,0.149909]
[1729691451403,0.17226126,66779.0,66777.0,0.945]
[1729691451843,0.17226126,66779.0,66777.0,1.094751]
[1729691452072,0.149749,66778.0,66777.0,0.945]
[1729691453241,0.149749,66778.0,66777.0,0.94516]
[1729691453668,0.17226126,66779.0,66777.0,0.94516]
[1729691453925,0.2167934,66779.0,66777.0,0.94516]
[1729691454160,0.3665404,66779.0,66778.0,0.00016]
[1729691454382,0.149749,66778.0,66777.0,0.945]
[1729691454858,0.30025281,66778.0,66777.0,0.945]
[1729691455329,0.31141146,66778.0,66777.0,0.945]
[1729691455788,0.31141146,66778.0,66777.0,0.94665]
[1729691456455,0.30025281,66778.0,66777.0,0.94665]
[1729691456711,0.47978403,66778.0,66777.0,0.94665]
[1729691456897,0.45075662,66778.0,66777.0,0.94665]
[1729691457103,0.47978412,66778.0,66777.0,0.94665]
[1729691459801,0.32928031,66778.0,66777.0,0.94665]
[1729691460012,0.17953131,66778.0,66777.0,0.94665]
[1729691460227,0.32928031,66778.0,66777.0,0.94665]
[1729691461712,0.51362031,66778.0,66777.0,0.94665]
[1729691461932,0.51862031,66778.0,66777.0,0.94665]
[1729691462168,5.65080129,66778.0,66777.0,0.42622359]
[1729691462394,5.62177379,66778.0,66777.0,0.42622359]
[1729691462616,5.65090538,66778.0,66777.0,0.42622359]
[1729691462839,5.65090941,66778.0,66777.0,0.42622359]
[1729691464451,5.65090941,66778.0,66777.0,0.40604782]
[1729691465109,0.165101,66773.0,66772.0,0.001694]
[1729691465318,5.44822762,66773.0,66772.0,0.001694]
[1729691465528,5.47736324,66773.0,66772.0,0.001694]
[1729691465964,5.64962308,66773.0,66772.0,0.001694]
[1729691466190,1.89950408,66773.0,66772.0,0.001694]
[1729691466630,1.89766408,66773.0,66772.0,0.001694]
[1729691466833,1.89950408,66773.0,66772.0,0.001694]
[1729691467086,1.89766408,66773.0,66772.0,0.001694]
[1729691467302,1.89950408,66773.0,66772.0,0.001694]
[1729691467543,1.89766408,66773.0,66772.0,0.001694]
[1729691467755,0.61516027,66773.0,66772.0,0.001694]
[1729691469148,0.61700027,66773.0,66772.0,0.001694]
[1729691469370,4.66507153,66773.0,66772.0,0.001694]
[1729691469618,4.68298875,66773.0,66772.0,0.001694]
[1729691469861,4.83349256,66773.0,66772.0,0.001694]
[1729691470149,4.83165256,66773.0,66772.0,0.001694]
[1729691470405,0.40538749,66773.0,66772.0,0.001694]
[1729691470644,0.41038749,66773.0,66772.0,0.001694]
[1729691470853,0.39246584,66773.0,66772.0,0.001694]
[1729691471066,0.38746584,66773.0,66772.0,0.001694]
[1729691472162,0.23770484,66773.0,66772.0,0.001694]
[1729691472378,0.25950001,66773.0,66772.0,0.001694]
[1729691472579,0.40926101,66773.0,66772.0,0.001694]
[1729691472793,0.39805998,66773.0,66772.0,0.001694]
[1729691473005,0.25949545,66773.0,66772.0,0.001694]
[1729691473427,0.40925649,66773.0,66772.0,0.001694]
[1729691475241,0.42717132,66773.0,66772.0,0.001694]
[1729691475480,0.02911134,66773.0,66772.0,0.151617]
[1729691475691,0.01119651,66773.0,66772.0,0.151457]
[1729691475910,0.01119651,66773.0,66772.0,0.174457]
[1729691476158,0.000825,66780.0,66772.0,0.174457]
[1729691476159,0.01119651,66779.0,66778.0,0.149749]
[1729691476374,0.01119651,66779.0,66773.0,0.299522]
[1729691476375,0.000825,66780.0,66779.0,0.149747]
[1729691476592,0.000825,66780.0,66778.0,0.149748]
[1729691476593,0.01119396,66779.0,66778.0,0.149748]
[1729691476814,0.01119396,66779.0,66775.0,0.149754]
[1729691477039,0.000825,66780.0,66773.0,0.023]
[1729691477040,0.03483163,66778.0,66773.0,0.023]
[1729691477256,0.01119396,66777.0,66773.0,0.023]
[1729691477476,0.02363767,66778.0,66773.0,0.023]
[1729691477477,0.01119396,66776.0,66775.0,0.149756]
[1729691477719,0.01119396,66777.0,66773.0,0.023]
[1729691477957,0.02363767,66778.0,66772.0,0.001694]
[1729691477958,0.149761,66773.0,66772.0,0.001694]
[1729691478163,0.49425877,66773.0,66772.0,0.001694]
[1729691478387,0.49925877,66773.0,66772.0,0.001694]
[1729691479920,0.49425877,66773.0,66772.0,0.001694]
[1729691480139,0.01119396,66773.0,66772.0,0.001694]
[1729691480777,0.149753,66777.0,66772.0,0.001694]
[1729691480778,0.01119396,66776.0,66772.0,0.001694]
[1729691480996,0.149758,66774.0,66772.0,0.001694]
[1729691481209,0.01119396,66773.0,66772.0,0.001694]
[1729691481417,0.16095496,66773.0,66772.0,0.001694]
[1729691481627,0.01119396,66773.0,66772.0,0.001694]
[1729691481839,0.05960392,66773.0,66772.0,0.001694]
[1729691482269,0.383216,66780.0,66776.0,0.149754]
[1729691482270,0.01119396,66777.0,66776.0,0.149754]
[1729691482497,0.01119396,66777.0,66772.0,0.17895526]
[1729691482776,0.149752,66777.0,66772.0,0.001694]
[1729691482987,0.06856267,66776.0,66772.0,0.001694]
[1729691483428,0.01119396,66775.0,66772.0,0.001694]
[1729691483645,0.01119396,66775.0,66774.0,0.00016]
[1729691483862,0.01119396,66775.0,66772.0,0.001694]
[1729691484101,0.03792546,66774.0,66772.0,0.001694]
[1729691484314,0.18768446,66774.0,66772.0,0.001694]
[1729691484527,0.149761,66773.0,66772.0,0.001694]
[1729691484741,0.16095496,66773.0,66772.0,0.001694]
[1729691485689,0.39285877,66773.0,66772.0,0.001694]
[1729691485943,0.54336258,66773.0,66772.0,0.001694]
[1729691486435,0.71562384,66773.0,66772.0,0.001694]
[1729691486663,0.54336258,66773.0,66772.0,0.001694]
[1729691486899,0.77272715,66773.0,66772.0,0.001694]
[1729691487136,0.54836937,66773.0,66772.0,0.001694]
[1729691487428,0.54336937,66773.0,66772.0,0.001694]
[1729691487662,0.01120075,66773.0,66772.0,0.001694]
[1729691488177,0.149754,66776.0,66772.0,0.001694]
[1729691488428,0.299506,66777.0,66772.0,0.001694]
[1729691488429,0.16095775,66775.0,66772.0,0.001694]
[1729691488662,0.01120075,66774.0,66772.0,0.001694]
[1729691489641,0.149757,66775.0,66772.0,0.001694]
[1729691489642,0.01120075,66773.0,66772.0,0.001694]
[1729691489874,0.53582334,66773.0,66772.0,0.001694]
[1729691490138,0.31146556,66773.0,66772.0,0.001694]
[1729691490421,0.42590018,66773.0,66772.0,0.001694]
[1729691491212,0.52440018,66773.0,66772.0,0.001694]
[1729691491429,0.61550018,66773.0,66772.0,0.001694]
[1729691491675,0.66028704,66773.0,66772.0,0.001694]
[1729691492163,0.66128704,66773.0,66772.0,0.001694]
[1729691492413,0.66028704,66773.0,66772.0,0.001694]
[1729691494107,0.53585196,66773.0,66772.0,0.001694]
[1729691494317,0.49106787,66773.0,66772.0,0.001694]
[1729691494753,0.49606787,66773.0,66772.0,0.001694]
[1729691494983,0.50106787,66773.0,66772.0,0.001694]
[1729691495202,0.50206787,66773.0,66772.0,0.001694]
[1729691495476,0.64999097,66773.0,66772.0,0.001694]
[1729691495678,0.71617126,66773.0,66772.0,0.001694]
[1729691495893,0.69381412,66773.0,66772.0,0.001694]
[1729691496105,0.64899097,66773.0,66772.0,0.001694]
[1729691496316,0.71617126,66773.0,66772.0,0.001694]
[1729691496533,0.71622602,66773.0,66772.0,0.001694]
[1729691496747,0.64899097,66773.0,66772.0,0.001694]
[1729691497171,0.69381312,66773.0,66772.0,0.001694]
[1729691497382,0.69381873,66773.0,66772.0,0.001694]
[1729691499071,0.7162303,66773.0,66772.0,0.001694]
[1729691499737,0.7172303,66773.0,66772.0,0.001694]
[1729691499952,0.73601013,66773.0,66772.0,0.001694]
[1729691500168,0.92390068,66773.0,66772.0,0.001694]
[1729691500619,0.83425395,66773.0,66772.0,0.001694]
[1729691500818,0.83341395,66773.0,66772.0,0.001694]
[1729691501027,0.83241911,66773.0,66772.0,0.001694]
[1729691501715,0.92207603,66773.0,66772.0,0.001694]
[1729691502796,0.83241911,66773.0,66772.0,0.001694]
[1729691503455,0.73417735,66773.0,66772.0,0.001694]
[1729691503904,0.71176223,66773.0,66772.0,0.001694]
[1729691504119,0.71176155,66773.0,66772.0,0.001694]
[1729691504338,0.68261438,66773.0,66772.0,0.001694]
[1729691504567,0.73417588,66773.0,66772.0,0.001694]
[1729691504779,0.66693361,66773.0,66772.0,0.001694]
[1729691505004,0.71176122,66773.0,66772.0,0.001694]
[1729691505241,0.66693361,66773.0,66772.0,0.001694]
[1729691505938,0.73417723,66773.0,66772.0,0.001694]
[1729691506161,0.66693361,66773.0,66772.0,0.001694]
[1729691506607,0.71176337,66773.0,66772.0,0.001694]
[1729691506859,0.72417723,66773.0,66772.0,0.001694]
[1729691507073,0.07397551,66773.0,66772.0,0.001694]
[1729691507294,0.1789067,66773.0,66772.0,0.001694]
[1729691507513,0.16097088,66773.0,66772.0,0.001694]
[1729691507960,0.16097449,66773.0,66772.0,0.001694]
[1729691508434,0.38935451,66773.0,66772.0,0.001694]
[1729691508649,0.4072961,66773.0,66772.0,0.001694]
[1729691508866,0.38935451,66773.0,66772.0,0.001694]
[1729691509745,0.4072961,66773.0,66772.0,0.001694]
[1729691509992,0.5846961,66773.0,66757.0,0.301285]
[1729691510268,0.5846961,66773.0,66734.0,0.001694]
[1729691510269,0.29064478,66736.0,66734.0,0.001694]
[1729691510504,1.89910526,66736.0,66734.0,0.001694]
[1729691510765,1.93026034,66736.0,66734.0,0.001694]
[1729691510977,1.95512126,66736.0,66734.0,0.001694]
[1729691511201,1.41370446,66736.0,66734.0,0.001694]
[1729691511419,1.41568783,66736.0,66734.0,0.001694]
[1729691511636,1.41468783,66736.0,66734.0,0.001694]
[1729691511855,1.41368783,66736.0,66734.0,0.001694]
[1729691512285,1.3153918,66736.0,66734.0,0.001694]
[1729691512506,1.70636541,66736.0,66734.0,0.001694]
[1729691512739,1.64027573,66736.0,66734.0,0.001694]
[1729691512957,1.89490143,66736.0,66734.0,0.001694]
[1729691513192,1.80638017,66736.0,66734.0,0.001694]
[1729691513404,0.266846,66735.0,66734.0,0.001694]
[1729691513626,5.62627392,66735.0,66734.0,0.001694]
[1729691514591,0.259873,66723.0,66716.0,0.22435778]
[1729691514808,0.30453761,66723.0,66716.0,0.22435778]
[1729691515036,0.259873,66723.0,66716.0,0.22435778]
[1729691515706,0.254873,66723.0,66716.0,0.22435778]
[1729691516557,0.26602734,66723.0,66716.0,0.22435778]
[1729691516992,0.52825459,66723.0,66716.0,0.22435778]
[1729691517634,0.79719109,66723.0,66716.0,0.22435778]
[1729691518561,0.78603675,66723.0,66716.0,0.22435778]
[1729691519789,0.5238095,66723.0,66716.0,0.22435778]
[1729691519997,0.78603675,66723.0,66716.0,0.22435778]
[1729691520828,0.40037681,66723.0,66716.0,0.22435778]
[1729691521300,0.40037681,66723.0,66710.0,0.001696]
[1729691522597,0.41652283,66723.0,66710.0,0.001696]
[1729691522818,0.76644721,66723.0,66710.0,0.001696]
[1729691523063,0.50421996,66723.0,66710.0,0.001696]
[1729691523311,0.42652283,66723.0,66710.0,0.001696]
[1729691523552,0.55554574,66723.0,66710.0,0.001696]
[1729691524036,0.81977299,66723.0,66710.0,0.001696]
[1729691524252,0.81777299,66723.0,66710.0,0.001696]
[1729691524469,0.55754574,66723.0,66710.0,0.001696]
[1729691524689,0.55554574,66723.0,66710.0,0.001696]
[1729691525127,0.55754574,66723.0,66710.0,0.001696]
[1729691525337,0.55554574,66723.0,66710.0,0.001696]
[1729691525751,0.55754574,66723.0,66710.0,0.001696]
[1729691526219,0.91357299,66723.0,66710.0,0.001696]
[1729691526434,0.51212725,66711.0,66710.0,0.001696]
[1729691526650,0.79917969,66711.0,66710.0,0.001696]
[1729691528194,0.80617969,66711.0,66710.0,0.001696]
[1729691528410,0.14992,66702.0,66701.0,0.22036162]
[1729691528702,0.149943,66692.0,66691.0,0.22585778]
[1729691528930,0.149943,66692.0,66691.0,0.22435778]
[1729691529422,0.149946,66691.0,66688.0,0.0015]
[1729691529655,0.149949,66689.0,66688.0,0.0015]
[1729691530146,0.29989,66691.0,66688.0,0.0015]
[1729691530641,0.149949,66689.0,66688.0,0.0015]
[1729691530903,0.26222725,66703.0,66688.0,0.0015]
[1729691531200,0.149947,66690.0,66688.0,0.0015]
[1729691531398,0.149949,66689.0,66688.0,0.0015]
[1729691531631,0.299876,66695.0,66688.0,0.0015]
[1729691531875,0.149949,66689.0,66688.0,0.0015]
[1729691532147,0.002,66710.0,66701.0,0.0015]
[1729691532148,0.14992,66702.0,66701.0,0.0015]
[1729691532382,0.16549581,66702.0,66694.0,0.0015]
[1729691532615,0.149943,66692.0,66689.0,0.0015]
[1729691532854,0.299869,66696.0,66687.0,0.0015]
[1729691532855,0.299873,66695.0,66687.0,0.0015]
[1729691533108,0.2999,66689.0,66686.0,0.0015]
[1729691533366,0.149954,66687.0,66686.0,0.0015]
[1729691533605,0.149951,66689.0,66686.0,0.0015]
[1729691533885,0.299892,66691.0,66686.0,0.0015]
[1729691533886,0.299895,66690.0,66686.0,0.0015]
[1729691534126,0.149947,66690.0,66686.0,0.0015]
[1729691534384,0.299895,66690.0,66686.0,0.0015]
[1729691534626,0.149961,66684.0,66680.0,0.0015]
[1729691534851,0.32278646,66689.0,66683.0,0.0015]
[1729691535086,0.15050381,66692.0,66683.0,0.0015]
[1729691535087,0.149958,66685.0,66683.0,0.0015]
[1729691535345,0.149956,66687.0,66683.0,0.0015]
[1729691535599,0.149957,66686.0,66683.0,0.0015]
[1729691535848,0.17283546,66689.0,66683.0,0.0015]
[1729691536622,0.149957,66686.0,66683.0,0.0015]
[1729691537097,0.299908,66687.0,66683.0,0.0015]
[1729691537350,0.299904,66688.0,66683.0,0.0015]
[1729691537580,0.149958,66685.0,66683.0,0.0015]
[1729691537809,0.149955,66687.0,66683.0,0.0015]
[1729691538048,0.149955,66687.0,66686.0,0.00165]
[1729691538541,0.17283546,66689.0,66686.0,0.00165]
[1729691538805,0.29989,66691.0,66686.0,0.00165]
[1729691539037,0.149918,66703.0,66697.0,0.149931]
[1729691539305,0.22435778,66707.0,66702.0,0.0015]
[1729691539555,0.01119435,66706.0,66701.0,0.023]
[1729691539775,0.01119435,66706.0,66702.0,0.149919]
[1729691540007,0.01119435,66705.0,66702.0,0.14992]
[1729691540242,0.149907,66708.0,66702.0,0.14992]
[1729691540243,0.01119435,66704.0,66702.0,0.14992]
[1729691540489,0.01119435,66704.0,66700.0,0.005]
[1729691540490,0.01119435,66703.0,66700.0,0.005]
[1729691540740,0.17283546,66708.0,66695.0,0.299868]
[1729691540741,0.01119435,66702.0,66695.0,0.299872]
[1729691541008,0.01119435,66702.0,66692.0,0.22435778]
[1729691541243,0.29985,66700.0,66693.0,0.149938]
[1729691541479,0.16112335,66699.0,66692.0,0.22435778]
[1729691541726,0.01119435,66698.0,66694.0,0.149938]
[1729691541981,0.01119435,66697.0,66694.0,0.149938]
[1729691542221,0.15050381,66703.0,66695.0,0.149935]
[1729691542222,0.01119435,66696.0,66695.0,0.149935]
[1729691542967,0.01119435,66696.0,66695.0,0.172935]
[1729691543225,0.22435778,66707.0,66696.0,0.023]